[Event "Belt Road Women 2019"]
[Site "Shaoxing"]
[Date "2019.07.12"]
[Round "5.12"]
[White "Gu, Tianlu"]
[Black "Pujari, Rucha"]
[Result "1-0"]
[ECO "C55"]
[WhiteElo "2205"]
[BlackElo "2268"]
[Annotator "ChessBase"]
[PlyCount "67"]
[EventDate "2019.07.08"]
[EventType "swiss"]
[EventCountry "CHN"]
[SourceTitle "playchess.com"]
[Source "ChessBase"]
[SourceQuality "1"]
[TimeControl "5400+30"]

1. e4 {[%emt 0:00:00]} e5 {[%emt 0:02:11]} 2. Nf3 {[%emt 0:00:19]} Nc6 {[%emt 0:00:15]} 3. Bc4 {[%emt 0:00:14]} Nf6 {[%emt 0:00:36]} 4. d3 {[%emt 0:00:46]} Be7 {[%emt 0:00:23]} 5. O-O {[%emt 0:00:11]} O-O {[%emt 0:00:22]} 6. Re1 {[%emt 0:00:11]} d6 {[%emt 0:00:27]} 7. a3 {[%emt 0:00:35]} Be6 {[%emt 0:09:32]} 8. Nbd2 {[%emt 0:00:28]} Qd7 {[%emt 0:00:56]} 9. c3 {[%emt 0:02:31]} Rae8 {[%emt 0:04:30]} 10. Bb5 {[%emt 0:02:54]} a6 {[%emt 0:01:44]} 11. Ba4 {[%emt 0:00:24]} b5 {[%emt 0:01:23]} 12. Bc2 {[%emt 0:00:06]} h6 {[%emt 0:05:22]} 13. Nf1 {[%emt 0:02:04]} d5 {[%emt 0:01:59]} 14. exd5 {[%emt 0:01:07]} Qxd5 {[%emt 0:04:51]} 15. b4 {[%emt 0:05:36]} Nd7 {[%emt 0:10:46]} 16. d4 {[%emt 0:16:59]} exd4 {[%emt 0:04:17]} 17. Be4 {[%emt 0:01:45]} Qd6 {[%emt 0:01:16]} 18. Bf4 {[%emt 0:01:48]} Qxf4 {[%emt 0:00:47]} 19. Bxc6 {[%emt 0:00:05]} dxc3 {[%emt 0:24:58]} 20. Rxe6 {[%emt 0:01:58]} fxe6 {[%emt 0:00:48]} 21. Bxd7 {[%emt 0:00:28]} Rd8 {[%emt 0:00:37]} 22. Bxe6+ {[%emt 0:01:54]} Kh8 {[%emt 0:00:31]} 23. Qc2 {[%emt 0:01:49]} c5 {[%emt 0:06:04]} 24. Re1 {[%emt 0:02:49]} Rf6 {[%emt 0:01:55]} 25. Ba2 {[%emt 0:06:23]} cxb4 {[%emt 0:09:35]} 26. Bb1 {[%emt 0:04:50]} g6 {[%emt 0:02:15]} 27. Rxe7 {[%emt 0:00:16]} a5 {[%emt 0:01:03]} 28. axb4 {[%emt 0:02:57]} axb4 {[%emt 0:00:51]} 29. Ne5 {[%emt 0:00:35]} Rdd6 {[%emt 0:01:47]} 30. g3 {[%emt 0:01:52]} b3 {[%emt 0:02:21]} 31. Nxg6+ {[%emt 0:03:06]} Rxg6 {[%emt 0:00:21]} 32. Qxc3+ {[%emt 0:00:05]} Qf6 {[%emt 0:00:43]} 33. Qc8+ {[%emt 0:00:11]} Rg8 {[%emt 0:00:12]} 34. Rh7# {[%emt 0:00:06]} 1-0

[Event "Belt Road Women 2019"]
[Site "Shaoxing"]
[Date "2019.07.12"]
[Round "5.13"]
[White "Zhang, Xiao"]
[Black "Bai, Xue"]
[Result "0-1"]
[ECO "E04"]
[WhiteElo "2259"]
[BlackElo "2029"]
[Annotator "ChessBase"]
[PlyCount "88"]
[EventDate "2019.07.08"]
[EventType "swiss"]
[EventCountry "CHN"]
[SourceTitle "playchess.com"]
[Source "ChessBase"]
[SourceQuality "1"]
[TimeControl "5400+30"]

1. d4 {[%emt 0:00:00]} Nf6 {[%emt 0:00:00]} 2. c4 {[%emt 0:00:00]} e6 {[%emt 0:00:00]} 3. g3 {[%emt 0:00:00]} d5 {[%emt 0:00:00]} 4. Bg2 {[%emt 0:00:00]} dxc4 {[%emt 0:02:01]} 5. Nf3 {[%emt 0:04:29]} c5 {[%emt 0:00:08]} 6. O-O {[%emt 0:00:55]} Nc6 {[%emt 0:00:07]} 7. Qa4 {[%emt 0:00:44]} Bd7 {[%emt 0:00:32]} 8. Qxc4 {[%emt 0:00:08]} b5 {[%emt 0:05:13]} 9. Qd3 {[%emt 0:00:58]} c4 {[%emt 0:00:14]} 10. Qd1 {[%emt 0:00:27]} Rc8 {[%emt 0:02:23]} 11. Bg5 {[%emt 0:00:26]} h6 {[%emt 0:02:10]} 12. Bxf6 {[%emt 0:00:07]} Qxf6 {[%emt 0:00:07]} 13. e4 {[%emt 0:00:43]} Bb4 {[%emt 0:00:33]} 14. a4 {[%emt 0:12:20]} bxa4 {[%emt 0:03:56]} 15. Rxa4 {[%emt 0:03:15]} a5 {[%emt 0:00:06]} 16. Nc3 {[%emt 0:02:23]} O-O {[%emt 0:02:13]} 17. Ra1 {[%emt 0:02:00]} Rfd8 {[%emt 0:01:23]} 18. e5 {[%emt 0:00:52]} Qe7 {[%emt 0:00:13]} 19. Qe2 {[%emt 0:02:07]} Na7 {[%emt 0:02:25]} 20. d5 {[%emt 0:04:15]} exd5 {[%emt 0:00:50]} 21. Nxd5 {[%emt 0:00:05]} Qc5 {[%emt 0:00:12]} 22. Rfd1 {[%emt 0:07:55]} Nb5 {[%emt 0:20:30]} 23. Rac1 {[%emt 0:02:34]} Be6 {[%emt 0:03:59]} 24. Nf4 {[%emt 0:08:44]} c3 {[%emt 0:09:06]} 25. Nxe6 {[%emt 0:03:22]} fxe6 {[%emt 0:00:06]} 26. Qc2 {[%emt 0:02:18]} cxb2 {[%emt 0:05:43]} 27. Qxb2 {[%emt 0:00:20]} Nc3 {[%emt 0:00:08]} 28. Rxd8+ {[%emt 0:04:47]} Rxd8 {[%emt 0:00:06]} 29. Ra1 {[%emt 0:00:30]} Qc4 {[%emt 0:06:16]} 30. h4 {[%emt 0:03:11]} a4 {[%emt 0:09:07]} 31. Bh3 {[%emt 0:05:20]} Kf7 {[%emt 0:02:43]} 32. Bf1 {[%emt 0:00:38]} Qe4 {[%emt 0:05:09]} 33. Re1 {[%emt 0:02:05]} a3 {[%emt 0:00:49]} 34. Qb3 {[%emt 0:02:42]} Qxf3 {[%emt 0:01:57]} 35. Qxb4 {[%emt 0:00:43]} Rd2 {[%emt 0:01:36]} 36. Qb6 {[%emt 0:01:20]} a2 {[%emt 0:08:08]} 37. Bc4 {[%emt 0:02:36]} Ne2+ {[%emt 0:00:32]} 38. Bxe2 {[%emt 0:05:46]} Rxe2 {[%emt 0:00:23]} 39. Rc1 {[%emt 0:02:05]} Qd5 {[%emt 0:02:29]} 40. Qa7+ {[%emt 0:05:08]} Kg8 {[%emt 0:02:51]} 41. Ra1 {[%emt 0:03:04]} Rb2 {[%emt 0:00:40]} 42. Rf1 {[%emt 0:02:59]} Rb1 {[%emt 0:00:20]} 43. Qa6 {[%emt 0:00:49]} Rxf1+ {[%emt 0:00:06]} 44. Kxf1 {[%emt 0:00:44]} a1=Q+ {[%emt 0:00:08]} 0-1

[Event "Belt Road Women 2019"]
[Site "Shaoxing"]
[Date "2019.07.12"]
[Round "5.14"]
[White "Li, Yunshan"]
[Black "Yan, Tianqi"]
[Result "1-0"]
[ECO "E52"]
[WhiteElo "2254"]
[BlackElo "2034"]
[Annotator "ChessBase"]
[PlyCount "69"]
[EventDate "2019.07.08"]
[EventType "swiss"]
[EventCountry "CHN"]
[SourceTitle "playchess.com"]
[Source "ChessBase"]
[SourceQuality "1"]
[TimeControl "5400+30"]

1. d4 {[%emt 0:00:00]} Nf6 {[%emt 0:00:00]} 2. c4 {[%emt 0:00:00]} e6 {[%emt 0:00:00]} 3. Nc3 {[%emt 0:00:00]} Bb4 {[%emt 0:00:00]} 4. Nf3 {[%emt 0:00:00]} O-O {[%emt 0:00:51]} 5. e3 {[%emt 0:00:10]} b6 {[%emt 0:00:29]} 6. Bd2 {[%emt 0:00:12]} Bb7 {[%emt 0:00:34]} 7. Bd3 {[%emt 0:00:22]} d5 {[%emt 0:00:26]} 8. cxd5 {[%emt 0:00:16]} exd5 {[%emt 0:00:18]} 9. Rc1 {[%emt 0:00:12]} a6 {[%emt 0:01:57]} 10. O-O {[%emt 0:00:42]} Bd6 {[%emt 0:01:25]} 11. Ne5 {[%emt 0:00:46]} Ne4 {[%emt 0:06:45]} 12. Be1 {[%emt 0:10:36]} Nd7 {[%emt 0:08:48]} 13. f4 {[%emt 0:04:27]} Qe7 {[%emt 0:14:27]} 14. Qf3 {[%emt 0:03:33]} f5 {[%emt 0:01:46]} 15. Qh3 {[%emt 0:03:20]} Qe8 {[%emt 0:12:22]} 16. Nxe4 {[%emt 0:21:42]} dxe4 {[%emt 0:03:07]} 17. Bc4+ {[%emt 0:01:06]} Kh8 {[%emt 0:00:03]} 18. Be2 {[%emt 0:01:30]} Qe6 {[%emt 0:07:40]} 19. g4 {[%emt 0:04:22]} g6 {[%emt 0:01:29]} 20. gxf5 {[%emt 0:03:37]} gxf5 {[%emt 0:00:11]} 21. Bc4 {[%emt 0:01:06]} Qe8 {[%emt 0:00:59]} 22. Kh1 {[%emt 0:04:43]} c5 {[%emt 0:02:33]} 23. Nxd7 {[%emt 0:14:19]} Qxd7 {[%emt 0:01:34]} 24. dxc5 {[%emt 0:01:14]} Be7 {[%emt 0:00:28]} 25. cxb6 {[%emt 0:02:29]} Bf6 {[%emt 0:00:28]} 26. Bc3 {[%emt 0:01:58]} Bxc3 {[%emt 0:02:03]} 27. Rxc3 {[%emt 0:00:10]} Rf6 {[%emt 0:00:24]} 28. Rc2 {[%emt 0:01:16]} Rxb6 {[%emt 0:04:48]} 29. Rg1 {[%emt 0:01:31]} Rd6 {[%emt 0:00:24]} 30. Rcg2 {[%emt 0:03:21]} Bd5 {[%emt 0:03:18]} 31. Bxd5 {[%emt 0:00:26]} Rxd5 {[%emt 0:00:02]} 32. Qh4 {[%emt 0:00:39]} Qf7 {[%emt 0:13:05]} 33. Rg7 {[%emt 0:00:26]} Qxg7 {[%emt 0:00:40]} 34. Rxg7 {[%emt 0:00:03]} Kxg7 {[%emt 0:00:06]} 35. Qe7+ {[%emt 0:00:04]} 1-0

[Event "Belt Road Women 2019"]
[Site "Shaoxing"]
[Date "2019.07.12"]
[Round "5.15"]
[White "Fominykh, Maria"]
[Black "Du, Yuxin"]
[Result "1/2-1/2"]
[ECO "E11"]
[WhiteElo "2243"]
[BlackElo "2015"]
[Annotator "NA"]
[PlyCount "91"]
[EventDate "2019.07.08"]
[EventType "swiss"]
[EventCountry "CHN"]
[SourceTitle "playchess.com"]
[Source "ChessBase"]
[SourceQuality "1"]
[TimeControl "5400+30"]

1. d4 {[%emt 0:00:00]} Nf6 {[%emt 0:00:00]} 2. c4 {[%emt 0:00:00]} e6 {[%emt 0:00:00]} 3. g3 {[%emt 0:00:00]} d5 {[%emt 0:02:39]} 4. Nf3 {[%emt 0:00:58]} Bb4+ {[%emt 0:00:16]} 5. Bd2 {[%emt 0:01:05]} Be7 {[%emt 0:00:08]} 6. Bg2 {[%emt 0:00:48]} O-O {[%emt 0:00:53]} 7. O-O {[%emt 0:00:13]} c6 {[%emt 0:06:41]} 8. Qc2 {[%emt 0:02:20]} Ne4 {[%emt 0:13:45]} 9. Be3 {[%emt 0:01:25]} Nd7 {[%emt 0:02:19]} 10. Ne1 {[%emt 0:05:45]} Nd6 {[%emt 0:01:53]} 11. cxd5 {[%emt 0:07:31]} exd5 {[%emt 0:01:47]} 12. Nc3 {[%emt 0:04:10]} Nf6 {[%emt 0:02:40]} 13. f3 {[%emt 0:10:36]} Bf5 {[%emt 0:02:11]} 14. Qc1 {[%emt 0:00:32]} Re8 {[%emt 0:04:24]} 15. Bf2 {[%emt 0:07:32]} Bf8 {[%emt 0:19:01]} 16. Nc2 {[%emt 0:18:10]} Bg6 {[%emt 0:20:36]} 17. Re1 {[%emt 0:04:53]} Qa5 {[%emt 0:05:52]} 18. a4 {[%emt 0:05:55]} Rac8 {[%emt 0:05:39]} 19. Bh3 {[%emt 0:02:51]} Rcd8 {[%emt 0:00:46]} 20. Bf1 {[%emt 0:03:18]} Qc7 {[%emt 0:02:14]} 21. b3 {[%emt 0:01:42]} b6 {[%emt 0:03:07]} 22. Rd1 {[%emt 0:09:27]} a5 {[%emt 0:01:12]} 23. Ne1 {[%emt 0:00:51]} h6 {[%emt 0:01:52]} 24. Nd3 {[%emt 0:00:51]} Bxd3 {[%emt 0:01:03]} 25. Rxd3 {[%emt 0:00:02]} Qd7 {[%emt 0:00:29]} 26. Rd2 {[%emt 0:07:45]} Nb7 {[%emt 0:00:46]} 27. e3 {[%emt 0:01:24]} g6 {[%emt 0:00:34]} 28. Qc2 {[%emt 0:02:31]} h5 {[%emt 0:00:39]} 29. Re1 {[%emt 0:00:23]} Bh6 {[%emt 0:00:23]} 30. Rdd1 {[%emt 0:00:05]} Nd6 {[%emt 0:00:19]} 31. e4 dxe4 {[%emt 0:00:11]} 32. fxe4 {[%emt 0:01:07]} Ng4 {[%emt 0:00:38]} 33. Bh3 {[%emt 0:00:10]} Qe7 {[%emt 0:00:33]} 34. Bxg4 {[%emt 0:00:09]} hxg4 {[%emt 0:00:04]} 35. e5 {[%emt 0:00:22]} Nf5 {[%emt 0:00:22]} 36. Ne4 {[%emt 0:00:14]} Bg7 {[%emt 0:01:03]} 37. Qxc6 {[%emt 0:00:12]} Qb4 {[%emt 0:00:48]} 38. Qc4 {[%emt 0:00:54]} Qxc4 {[%emt 0:00:36]} 39. bxc4 {[%emt 0:00:02]} Re6 {[%emt 0:00:31]} 40. Rd2 {[%emt 0:03:04]} Rc6 {[%emt 0:00:23]} 41. Rc1 {[%emt 0:00:28]} Bh6 {[%emt 0:00:23]} 42. Rcd1 {[%emt 0:00:37]} Bxd2 {[%emt 0:00:08]} 43. Rxd2 {[%emt 0:00:23]} Rxc4 {[%emt 0:00:27]} 44. Nf6+ {[%emt 0:00:06]} Kg7 {[%emt 0:00:40]} 45. d5 {[%emt 0:00:10]} Rb4 {[%emt 0:00:57]} 46. Kf1 {[%emt 0:01:19]} 1/2-1/2

[Event "Belt Road Women 2019"]
[Site "Shaoxing"]
[Date "2019.07.12"]
[Round "5.16"]
[White "Xu, Yuze"]
[Black "Zhang, Yuxuan"]
[Result "1-0"]
[ECO "B22"]
[WhiteElo "2083"]
[BlackElo "1987"]
[Annotator "NA"]
[PlyCount "77"]
[EventDate "2019.07.08"]
[EventType "swiss"]
[EventCountry "CHN"]
[SourceTitle "playchess.com"]
[Source "ChessBase"]
[SourceQuality "1"]
[TimeControl "5400+30"]

1. e4 {[%emt 0:00:00]} c5 {[%emt 0:00:00]} 2. c3 {[%emt 0:00:00]} d5 {[%emt 0:00:00]} 3. exd5 {[%emt 0:00:00]} Qxd5 {[%emt 0:00:00]} 4. d4 {[%emt 0:00:00]} e6 {[%emt 0:00:00]} 5. Nf3 {[%emt 0:00:00]} Nf6 {[%emt 0:00:07]} 6. Na3 {[%emt 0:01:44]} a6 {[%emt 0:03:41]} 7. Nc4 {[%emt 0:00:18]} Nbd7 {[%emt 0:02:16]} 8. a4 {[%emt 0:00:31]} b6 {[%emt 0:05:16]} 9. Be2 {[%emt 0:19:44]} Bb7 {[%emt 0:03:28]} 10. Be3 {[%emt 0:07:06]} Ng4 {[%emt 0:12:28]} 11. Bf4 {[%emt 0:15:04]} cxd4 {[%emt 0:01:43]} 12. Qxd4 {[%emt 0:00:55]} Qxd4 {[%emt 0:08:25]} 13. Nxd4 {[%emt 0:00:44]} h5 {[%emt 0:00:26]} 14. O-O {[%emt 0:07:48]} Ngf6 {[%emt 0:04:29]} 15. Rfe1 {[%emt 0:01:04]} Nd5 {[%emt 0:03:27]} 16. Bf3 {[%emt 0:00:48]} Bc5 {[%emt 0:06:05]} 17. Nd6+ {[%emt 0:06:20]} Bxd6 {[%emt 0:00:10]} 18. Bxd6 {[%emt 0:00:07]} Ra7 {[%emt 0:01:26]} 19. Rad1 {[%emt 0:09:30]} Ne7 {[%emt 0:01:08]} 20. Nxe6 {[%emt 0:01:19]} Bxf3 {[%emt 0:01:38]} 21. Nxg7+ {[%emt 0:01:30]} Kf8 {[%emt 0:00:06]} 22. gxf3 {[%emt 0:00:28]} Kxg7 {[%emt 0:02:15]} 23. Rxe7 {[%emt 0:00:21]} Rd8 {[%emt 0:00:27]} 24. Rd4 {[%emt 0:00:39]} Rb7 {[%emt 0:02:33]} 25. Kf1 {[%emt 0:02:44]} Nc5 {[%emt 0:01:50]} 26. Rxb7 {[%emt 0:01:34]} Nxb7 {[%emt 0:00:06]} 27. Be5+ {[%emt 0:00:02]} Kg6 {[%emt 0:00:34]} 28. Rxd8 {[%emt 0:00:09]} Nxd8 {[%emt 0:00:09]} 29. Bc7 {[%emt 0:00:05]} Nc6 {[%emt 0:00:07]} 30. Bxb6 {[%emt 0:00:06]} Ne5 {[%emt 0:00:05]} 31. b4 {[%emt 0:02:18]} Nxf3 {[%emt 0:00:30]} 32. Kg2 {[%emt 0:00:04]} Nd2 {[%emt 0:00:52]} 33. b5 {[%emt 0:00:50]} Nc4 {[%emt 0:00:07]} 34. Bd4 {[%emt 0:00:15]} axb5 {[%emt 0:00:16]} 35. axb5 {[%emt 0:00:05]} Kf5 {[%emt 0:00:27]} 36. b6 {[%emt 0:00:16]} Na5 {[%emt 0:00:05]} 37. c4 {[%emt 0:00:55]} Ke4 {[%emt 0:00:15]} 38. Be3 {[%emt 0:00:24]} f5 {[%emt 0:00:35]} 39. Kg3 {[%emt 0:01:18] Kd5} 1-0

[Event "Belt Road Women 2019"]
[Site "Shaoxing"]
[Date "2019.07.12"]
[Round "5.17"]
[White "Zhou, Yafei"]
[Black "Peng, Tianlu"]
[Result "1-0"]
[ECO "E11"]
[WhiteElo "1720"]
[BlackElo "1901"]
[Annotator "NA"]
[PlyCount "89"]
[EventDate "2019.07.08"]
[EventType "swiss"]
[EventCountry "CHN"]
[SourceTitle "playchess.com"]
[Source "ChessBase"]
[SourceQuality "1"]
[TimeControl "5400+30"]

1. d4 {[%emt 0:00:00]} Nf6 {[%emt 0:00:00]} 2. c4 {[%emt 0:00:00]} e6 {[%emt 0:00:00]} 3. Nf3 {[%emt 0:00:00]} Bb4+ {[%emt 0:00:00]} 4. Bd2 {[%emt 0:00:33]} a5 {[%emt 0:00:00]} 5. a3 {[%emt 0:02:08]} Bxd2+ {[%emt 0:00:01]} 6. Qxd2 {[%emt 0:00:11]} O-O {[%emt 0:02:17]} 7. Nc3 {[%emt 0:00:08]} b6 {[%emt 0:00:56]} 8. e4 {[%emt 0:05:10]} d5 {[%emt 0:02:45]} 9. e5 {[%emt 0:01:16]} Ne4 {[%emt 0:01:07]} 10. Qc2 {[%emt 0:06:03]} Bb7 {[%emt 0:06:19]} 11. Bd3 {[%emt 0:04:37]} Ng5 {[%emt 0:15:34]} 12. cxd5 {[%emt 0:07:44]} Nxf3+ {[%emt 0:13:50]} 13. gxf3 {[%emt 0:00:07]} g6 {[%emt 0:05:32]} 14. O-O-O {[%emt 0:02:09]} Bxd5 {[%emt 0:01:48]} 15. Nxd5 {[%emt 0:02:34]} exd5 {[%emt 0:00:10]} 16. Rdg1 {[%emt 0:03:37]} Qd7 {[%emt 0:03:06]} 17. Kb1 {[%emt 0:05:02]} c5 {[%emt 0:03:34]} 18. h4 {[%emt 0:19:01]} c4 {[%emt 0:01:57]} 19. Bf5 {[%emt 0:00:15]} Qe8 {[%emt 0:07:56]} 20. h5 {[%emt 0:00:56]} g5 {[%emt 0:22:22]} 21. Rxg5+ {[%emt 0:02:28]} Kh8 {[%emt 0:00:07]} 22. Bxh7 {[%emt 0:00:34]} Nc6 {[%emt 0:01:25]} 23. Qd2 {[%emt 0:21:16]} Kxh7 {[%emt 0:05:40]} 24. Rhg1 {[%emt 0:00:55]} Qe6 {[%emt 0:01:35]} 25. Rg7+ {[%emt 0:02:04]} Kh8 {[%emt 0:00:18]} 26. R1g6 {[%emt 0:01:57]} Qf5+ {[%emt 0:02:30]} 27. Ka1 {[%emt 0:00:45]} Qxg6 {[%emt 0:01:12]} 28. Rxg6 {[%emt 0:00:06]} fxg6 {[%emt 0:00:15]} 29. Qh6+ {[%emt 0:00:06]} Kg8 {[%emt 0:00:03]} 30. Qxg6+ {[%emt 0:02:06]} Kh8 {[%emt 0:00:05]} 31. Qxc6 {[%emt 0:00:17]} Rac8 {[%emt 0:02:17]} 32. Qxd5 {[%emt 0:08:19]} c3 {[%emt 0:00:11]} 33. bxc3 {[%emt 0:00:26]} Rxc3 {[%emt 0:00:28]} 34. Kb2 {[%emt 0:00:55]} Rcxf3 {[%emt 0:00:10]} 35. e6 {[%emt 0:01:31]} Rxf2+ {[%emt 0:00:46]} 36. Kb3 {[%emt 0:00:20]} b5 {[%emt 0:01:04]} 37. Qxb5 {[%emt 0:01:07]} a4+ {[%emt 0:00:37]} 38. Kxa4 {[%emt 0:01:13]} Ra8+ {[%emt 0:00:30]} 39. Kb3 {[%emt 0:00:07]} Rf3+ {[%emt 0:00:07]} 40. Kc4 {[%emt 0:00:52]} Raxa3 {[%emt 0:00:56]} 41. Qb8+ {[%emt 0:00:34]} Kg7 {[%emt 0:00:11]} 42. e7 {[%emt 0:00:19]} Rac3+ {[%emt 0:00:12]} 43. Kd5 {[%emt 0:00:09]} Rf5+ {[%emt 0:01:05]} 44. Ke4 {[%emt 0:00:08]} Rcf3 {[%emt 0:00:31]} 45. e8=Q {[%emt 0:00:19]} 1-0

[Event "Belt Road Women 2019"]
[Site "Shaoxing"]
[Date "2019.07.13"]
[Round "6.7"]
[White "Li, Xueyi"]
[Black "Pratyusha, Bodda"]
[Result "1-0"]
[ECO "E05"]
[WhiteElo "2330"]
[BlackElo "2265"]
[Annotator "ChessBase"]
[PlyCount "87"]
[EventDate "2019.07.08"]
[EventType "swiss"]
[EventCountry "CHN"]
[SourceTitle "playchess.com"]
[Source "ChessBase"]
[SourceQuality "1"]
[TimeControl "5400+30"]

1. d4 {[%emt 0:00:00]} Nf6 {[%emt 0:00:00]} 2. Nf3 {[%emt 0:00:00]} e6 {[%emt 0:00:00]} 3. g3 {[%emt 0:00:03]} d5 {[%emt 0:00:07]} 4. c4 {[%emt 0:00:08]} Be7 {[%emt 0:00:34]} 5. Bg2 {[%emt 0:00:16]} O-O {[%emt 0:00:05]} 6. O-O {[%emt 0:00:14]} dxc4 {[%emt 0:00:04]} 7. Qc2 {[%emt 0:00:17]} a6 {[%emt 0:00:26]} 8. a4 {[%emt 0:00:58]} Bd7 {[%emt 0:00:12]} 9. Rd1 {[%emt 0:00:29]} Bc6 {[%emt 0:01:00]} 10. Nc3 {[%emt 0:01:33]} Qc8 {[%emt 0:07:58]} 11. e4 {[%emt 0:01:53]} Rd8 {[%emt 0:00:22]} 12. Ne5 {[%emt 0:01:05]} Be8 {[%emt 0:00:51]} 13. Qe2 {[%emt 0:11:17]} Nbd7 {[%emt 0:11:10]} 14. Nxc4 {[%emt 0:00:47]} Nf8 {[%emt 0:00:37]} 15. Bg5 {[%emt 0:08:06]} Rb8 {[%emt 0:08:13]} 16. a5 {[%emt 0:04:18]} Nd5 {[%emt 0:03:28]} 17. Bxe7 {[%emt 0:01:36]} Nxe7 {[%emt 0:00:04]} 18. d5 {[%emt 0:01:57]} b5 {[%emt 0:04:11]} 19. axb6 {[%emt 0:12:35]} cxb6 {[%emt 0:00:05]} 20. Ne3 {[%emt 0:01:03]} b5 {[%emt 0:01:16]} 21. dxe6 {[%emt 0:01:59]} Rxd1+ {[%emt 0:02:09]} 22. Qxd1 {[%emt 0:01:31]} Qxe6 {[%emt 0:01:28]} 23. Ncd5 {[%emt 0:01:00]} Nxd5 {[%emt 0:01:07]} 24. exd5 {[%emt 0:01:32]} Qb6 {[%emt 0:00:49]} 25. Nf5 {[%emt 0:02:01]} Qf6 {[%emt 0:01:57]} 26. Nd4 {[%emt 0:02:00]} Rd8 {[%emt 0:03:57]} 27. Qd2 {[%emt 0:05:54]} Ng6 {[%emt 0:03:21]} 28. Qc3 {[%emt 0:02:28]} Ne7 {[%emt 0:09:21]} 29. Nc6 {[%emt 0:01:09]} Qxc3 {[%emt 0:02:57]} 30. Nxe7+ {[%emt 0:04:13]} Kf8 {[%emt 0:00:28]} 31. bxc3 {[%emt 0:00:16]} Kxe7 {[%emt 0:00:04]} 32. Rxa6 {[%emt 0:00:21]} Rc8 {[%emt 0:03:55]} 33. d6+ {[%emt 0:03:13]} Kd8 {[%emt 0:00:04]} 34. Bb7 {[%emt 0:13:47]} Rxc3 {[%emt 0:01:23]} 35. Ra8+ {[%emt 0:00:25]} Kd7 {[%emt 0:04:04]} 36. Ba6 {[%emt 0:00:09]} Rc5 {[%emt 0:00:35]} 37. Rb8 {[%emt 0:00:10]} Re5 {[%emt 0:00:06]} 38. Bxb5+ {[%emt 0:00:29]} Kxd6 {[%emt 0:00:22]} 39. Bxe8 {[%emt 0:02:08]} Kc7 {[%emt 0:00:56]} 40. Ra8 {[%emt 0:00:26]} Kb7 {[%emt 0:00:03]} 41. Rd8 {[%emt 0:00:06]} Kc7 {[%emt 0:00:18]} 42. Rd7+ {[%emt 0:00:06]} Kc8 {[%emt 0:00:08]} 43. Rxf7 {[%emt 0:00:15]} Rxe8 {[%emt 0:00:10]} 44. Rxg7 {[%emt 0:00:08]} 1-0

[Event "Belt Road Women 2019"]
[Site "Shaoxing"]
[Date "2019.07.13"]
[Round "6.12"]
[White "Du, Yuxin"]
[Black "Song, Yuxin"]
[Result "1-0"]
[ECO "B96"]
[WhiteElo "2015"]
[BlackElo "2277"]
[Annotator "ChessBase"]
[PlyCount "137"]
[EventDate "2019.07.08"]
[EventType "swiss"]
[EventCountry "CHN"]
[SourceTitle "playchess.com"]
[Source "ChessBase"]
[SourceQuality "1"]
[TimeControl "5400+30"]

1. e4 {[%emt 0:00:00]} c5 {[%emt 0:00:00]} 2. Nf3 {[%emt 0:00:00]} d6 {[%emt 0:00:00]} 3. d4 {[%emt 0:00:00]} cxd4 {[%emt 0:00:00]} 4. Nxd4 {[%emt 0:01:25]} Nf6 {[%emt 0:00:10]} 5. Nc3 {[%emt 0:00:09]} a6 {[%emt 0:00:08]} 6. Bg5 {[%emt 0:00:54]} e6 {[%emt 0:00:12]} 7. f4 {[%emt 0:03:58]} h6 {[%emt 0:00:06]} 8. Bh4 {[%emt 0:04:37]} Qb6 {[%emt 0:00:08]} 9. a3 {[%emt 0:15:47]} Be7 {[%emt 0:00:10]} 10. Bf2 {[%emt 0:01:24]} Qc7 {[%emt 0:00:09]} 11. Bd3 {[%emt 0:04:59]} Nbd7 {[%emt 0:04:48]} 12. Qe2 {[%emt 0:04:34]} Nc5 {[%emt 0:04:13]} 13. O-O-O {[%emt 0:09:14]} b5 {[%emt 0:09:54]} 14. f5 {[%emt 0:08:16]} e5 {[%emt 0:03:57]} 15. Nf3 {[%emt 0:04:29]} Bb7 {[%emt 0:01:01]} 16. Kb1 {[%emt 0:08:37]} O-O-O {[%emt 0:02:19]} 17. Rhe1 {[%emt 0:08:22]} Rhe8 {[%emt 0:20:21]} 18. Bg3 {[%emt 0:12:06]} Bc6 {[%emt 0:04:26]} 19. b4 {[%emt 0:05:44]} Nxd3 {[%emt 0:06:58]} 20. Rxd3 {[%emt 0:01:19]} g6 {[%emt 0:06:37]} 21. fxg6 {[%emt 0:00:34]} fxg6 {[%emt 0:00:01]} 22. Nd2 {[%emt 0:02:11]} Kb8 {[%emt 0:04:18]} 23. Nb3 {[%emt 0:00:38]} Nh5 {[%emt 0:09:22]} 24. Nd5 {[%emt 0:00:47]} Nxg3 {[%emt 0:05:41]} 25. hxg3 {[%emt 0:00:20]} Qa7 {[%emt 0:01:00]} 26. Na5 {[%emt 0:00:57]} Rc8 {[%emt 0:01:01]} 27. Red1 {[%emt 0:00:39]} Bg5 {[%emt 0:01:09]} 28. Rf3 {[%emt 0:01:24]} Bxd5 {[%emt 0:07:01]} 29. exd5 {[%emt 0:00:06]} e4 {[%emt 0:00:14]} 30. Nc6+ {[%emt 0:00:48]} Rxc6 {[%emt 0:01:42]} 31. dxc6 {[%emt 0:00:05]} Qe7 {[%emt 0:00:01]} 32. Rc3 {[%emt 0:00:58]} Kc7 {[%emt 0:00:58]} 33. Qg4 {[%emt 0:00:34]} Rd8 {[%emt 0:01:13]} 34. Rf1 {[%emt 0:00:30]} d5 {[%emt 0:03:24]} 35. Qe2 {[%emt 0:00:19]} Bf6 {[%emt 0:01:34]} 36. Rb3 {[%emt 0:00:37]} d4 {[%emt 0:00:54]} 37. Rxf6 {[%emt 0:00:35]} Qxf6 {[%emt 0:00:06]} 38. Qxe4 {[%emt 0:00:04]} Qxc6 {[%emt 0:00:15]} 39. Qf4+ {[%emt 0:00:36]} Rd6 {[%emt 0:01:41]} 40. Qxh6 {[%emt 0:00:34]} Qxg2 {[%emt 0:00:01]} 41. Qg7+ {[%emt 0:00:27]} Kc8 {[%emt 0:00:25]} 42. Qf8+ {[%emt 0:00:48]} Kd7 {[%emt 0:01:00]} 43. Rf3 {[%emt 0:00:28]} Qh1+ {[%emt 0:02:03]} 44. Kb2 {[%emt 0:00:13]} Kc7 {[%emt 0:00:37]} 45. Rf7+ {[%emt 0:00:24]} Rd7 {[%emt 0:00:01]} 46. Rxd7+ {[%emt 0:00:48]} Kxd7 {[%emt 0:00:01]} 47. Qg7+ {[%emt 0:00:18]} Kc8 {[%emt 0:01:25]} 48. Qxd4 {[%emt 0:00:20]} Qh7 {[%emt 0:00:41]} 49. Qc5+ {[%emt 0:00:40]} Kb7 {[%emt 0:00:03]} 50. Qd5+ {[%emt 0:00:21]} Kb6 {[%emt 0:00:06]} 51. Kb3 {[%emt 0:00:22]} Qg7 {[%emt 0:01:10]} 52. c4 {[%emt 0:00:35]} bxc4+ {[%emt 0:00:26]} 53. Kxc4 {[%emt 0:00:12]} Qf6 {[%emt 0:00:11]} 54. Qd4+ {[%emt 0:00:34]} Qxd4+ {[%emt 0:00:08]} 55. Kxd4 {[%emt 0:00:04]} Kb5 {[%emt 0:00:02]} 56. Kc3 {[%emt 0:00:11]} Ka4 {[%emt 0:00:47]} 57. Kb2 {[%emt 0:00:05]} a5 {[%emt 0:00:59]} 58. bxa5 {[%emt 0:00:05]} Kxa5 {[%emt 0:00:01]} 59. Kc3 {[%emt 0:00:18]} Ka4 {[%emt 0:00:18]} 60. Kd4 {[%emt 0:00:05]} Kxa3 {[%emt 0:00:02]} 61. Ke5 {[%emt 0:00:06]} Kb4 {[%emt 0:00:08]} 62. Kf6 {[%emt 0:00:04]} Kc5 {[%emt 0:00:05]} 63. Kxg6 {[%emt 0:00:05]} Kd6 {[%emt 0:00:05]} 64. g4 {[%emt 0:00:22]} Ke7 {[%emt 0:00:07]} 65. Kg7 {[%emt 0:00:04]} Ke6 {[%emt 0:00:04]} 66. g5 {[%emt 0:00:05]} Ke7 {[%emt 0:00:04]} 67. g6 {[%emt 0:00:04]} Ke6 {[%emt 0:00:04]} 68. Kf8 {[%emt 0:00:04]} Kf6 {[%emt 0:00:02]} 69. g7 {[%emt 0:00:05]} 1-0